Workbook

Sheet Tax fraud
B1: Tax fraud
B3: The IRS catches about 25% of all fraudulent returns each year. (This is far
B4: higher than the truth, but makes for simpler calculations.) (a) What is the
B5: probability that you could get away with fraud 5 years in a row? (b) What is the
B6: expected number of fraudulent returns you could file before being caught for
B7: the first time? (c) If you cheat every year, how likely is it that you'll be caught
B8: twice in 5 years (assuming that the IRS does not increase its scrutiny of you after
B9: the first detected offense)?
B12: 0.25 | C12: Pr( fraudulent return is caught )
B13: 5 | C13: n ( years )
B15: =(1-Pr_fraud)^n -> 0.2373046875 | C15: Pr( not caught n years in a row )
B16: =(1/Pr_fraud)-1 -> 3 | C16: E[ number of years prior to being caught first time )
B18: 2 | C18: k ( times caught )
B19: =BINOMDIST(k,n,Pr_fraud,FALSE) -> 0.263671875 | C19: Pr( caught k times in n years )
B20: =COMBIN(n,k)*Pr_fraud^k*(1-Pr_fraud)^(n-k) -> 0.263671875 | C20: same, explicitly

Sheet Defective parts
B1: Defective parts
B3: When a new machine is functioning properly, only 3% of the items produced are
B4: defective. Assume that we will randomly select two parts produced on the
B5: machine and that we are interested in the number of defective parts found.
B6: Compute the probabilities associated with finding no defects, exactly one defect,
B7: and two defects.
D10: 0.03 | E10: defect rate
D11: sample size
D12: 1 | E12: 2 | F12: 3 | G12: 4 | H12: 5 | I12: 6 | J12: 7 | K12: 8 | L12: 9 | M12: 10
B13: defectives | C13: 0 | D13: =BINOMDIST($C13,D$12,$D$10,FALSE) -> 0.97 | E13: 0.9409 | F13: 0.912673 | G13: 0.88529281 | H13: 0.8587340257 | I13: 0.8329720049 | J13: 0.8079828448 | K13: 0.7837433594 | L13: 0.7602310587 | M13: 0.7374241269
C14: 1 | D14: =BINOMDIST($C14,D$12,$D$10,FALSE) -> 0.03 | E14: 0.0582 | F14: 0.084681 | G14: 0.10952076 | H14: 0.1327939215 | I14: 0.1545721246 | J14: 0.174924121 | K14: 0.1939158827 | L14: 0.211610707 | M14: 0.2280693176
C15: 2 | E15: 0.0009 | F15: 0.002619 | G15: 0.00508086 | H15: 0.008214057 | I15: 0.01195145294 | J15: 0.01623007309 | K15: 0.02099089452 | L15: 0.02617864417 | M15: 0.03174160606
C16: 3 | F16: 2.7e-05 | G16: 0.00010476 | H16: 0.000254043 | I16: 0.00049284342 | J16: 0.0008366017055 | K16: 0.001298405847 | L16: 0.001889180507 | M16: 0.002617864417
C17: 4 | G17: 8.1e-07 | H17: 3.9285e-06 | I17: 1.1431935e-05 | J17: 2.587427955e-05 | K17: 5.019610233e-05 | L17: 8.764239466e-05 | M17: 0.000141688538
C18: 5 | H18: 2.43e-08 | I18: 1.41426e-07 | J18: 4.8014127e-07 | K18: 1.241965418e-06 | L18: 2.710589526e-06 | M18: 5.25854368e-06
C19: 6 | I19: 7.29e-10 | J19: 4.94991e-09 | K19: 1.92056508e-08 | L19: 5.588844383e-08 | M19: 1.355294763e-07
C20: 7 | J20: 2.187e-11 | K20: 1.697112e-10 | L20: 7.40789388e-10 | M20: 2.395219021e-09
C21: 8 | K21: 6.561e-13 | L21: 5.727753e-12 | M21: 2.777960205e-11
C22: 9 | L22: 1.9683e-14 | M22: 1.909251e-13
C23: 10 | M23: 5.9049e-16

Sheet Dirt
B1: Removing dirt and stains
B3: A new clothes-washing compound is found to remove excess dirt and stains
B4: satisfactorily on 88% of the items washed. Assume that 10 items are to be
B5: washed with the new compound.
B7: What is the probability of satisfactory results on all 10 items?
B9: What is the probability of at least two items being found with unsatisfactory
B10: results?
B13: 0.88 | C13: Pr( success on a single item )
B15: 10 | C15: n (number of items washed)
B16: =Pr_success^washed -> 0.278500976 | C16: Pr( success on all n items )
B18: 2 | C18: d (at least these many items still dirty)
C20: Pr( failure on at least d items )
B21: =BINOMDIST(washed-dirty,washed,Pr_success,TRUE) -> 0.3417249658 | C21: = Pr( n-d or fewer cleaned successfully )
B22: =1-BINOMDIST(dirty-1,washed,1-Pr_success,TRUE) -> 0.3417249658 | C22: = 1 - Pr( d-1 or fewer still dirty )

Sheet Complaints
B1: Looking at a sample: The binomial distribution
B3: The greatest number of complaints by owners of two-year-old automobiles pertain to
B4: electrical system performance (Consumer Reports 1995 Buyer’s Guide). Assume that
B5: an annual questionnaire sent to owners of over 300 makes and models of
B6: automobiles reveeals that 10% of the owners of two-year-old automobiles found
B7: trouble spots in the electrical system that included the starter, alternator, battery,
B8: switch controls, instruments, wiring, lights, and radio.
B10: What is the probability that a sample of 12 owners of two-year-old automobiles will
B11: find exactly two owners with electrical system problems?
B13: What is the probability that a sample of 12 owners of two-year-old automobiles will
B14: find at least two owners with electrical system problems?
B16: What is the probability that a sample of 20 owners of two-year-old automobiles will
B17: find at least one owner with electrical system problems?
B20: 0.1 | C20: Pr( electrical problem )
B22: 12 | C22: sample size | D22: ¬ change these to 20 and 1 to solve part c.
B23: 2 | C23: k
B25: =BINOMDIST(kk,sample,Pr_problem,FALSE) -> 0.2301277705 | C25: Pr( exactly k in sample experience problems )
B26: =1-BINOMDIST(kk-1,sample,Pr_problem,TRUE) -> 0.3409977482 | C26: Pr( at least k in sample experience problems )
C28: k | D28: Pr( exactly k in sample experience problems )
C29: 0 | D29: =COMBIN(sample,C29)*Pr_problem^C29*(1-Pr_problem)^(sample-C29) -> 0.2824295365 | E29: =BINOMDIST(C29,sample,Pr_problem,FALSE) -> 0.2824295365
C30: 1 | D30: =COMBIN(sample,C30)*Pr_problem^C30*(1-Pr_problem)^(sample-C30) -> 0.3765727153 | E30: =BINOMDIST(C30,sample,Pr_problem,FALSE) -> 0.3765727153
C31: 2 | D31: 0.2301277705 | E31: 0.2301277705
C32: 3 | D32: 0.08523250758 | E32: 0.08523250758
C33: 4 | D33: 0.0213081269 | E33: 0.0213081269
C34: 5 | D34: 0.003788111448 | E34: 0.003788111448
C35: 6 | D35: 0.000491051484 | E35: 0.000491051484
C36: 7 | D36: 4.6766808e-05 | E36: 4.6766808e-05
C37: 8 | D37: 3.247695e-06 | E37: 3.247695e-06
C38: 9 | D38: 1.6038e-07 | E38: 1.6038e-07
C39: 10 | D39: 5.346e-09 | E39: 5.346e-09
C40: 11 | D40: 1.08e-10 | E40: 1.08e-10
C41: 12 | D41: 1e-12 | E41: 1e-12
C42: 13
C43: 14
C44: 15
C45: 16
C46: 17 | D46: =COMBIN(sample,C46)*Pr_problem^C46*(1-Pr_problem)^(sample-C46) -> 
C47: 18 | D47: =COMBIN(sample,C47)*Pr_problem^C47*(1-Pr_problem)^(sample-C47) -> 
C48: 19 | D48: =COMBIN(sample,C48)*Pr_problem^C48*(1-Pr_problem)^(sample-C48) -> 
C49: 20 | D49: =COMBIN(sample,C49)*Pr_problem^C49*(1-Pr_problem)^(sample-C49) -> 

Sheet Coin flips
B1: Coin flipping
B3: What is the expected number of coin flips needed in order to get
B4: at least one head and at least one tail?
H6: =MIN(H7:H27) -> 4 | J6: =ADDRESS(ROW($H$6),COLUMN($H$6)) -> $H$6 | K6: monitored cell
B7: The first table to the right simulates | F7: 1 | G7: =IF(RAND()<=0.5,"H","T") -> H | J7: 3.00155 | K7: mean
B8: a sequence of 20 coin flips, and | F8: 2 | G8: =IF(RAND()<=0.5,"H","T") -> H | H8: =IF(G8<>G7,F8,"") ->  | J8: 1.411880849 | K8: sample standard deviation
B9: at the top of the third column | F9: 3 | G9: H | H9: =IF(G9<>G8,F9,"") ->  | J9: 2 | K9: minimum
B10: determines the number of flips | F10: 4 | G10: T | H10: 4 | J10: 18 | K10: maximum
B11: needed to get both a head and | F11: 5 | G11: T | J11: 100000 | K11: number of simulation runs
B12: a tail. | F12: 6 | G12: T
F13: 7 | G13: H | H13: 7 | J13: =1.96*J8/SQRT(J11) -> 0.008750928164 | K13: margin of error (95% confidence)
B14: Press "F9" a few times to see that | F14: 8 | G14: T | H14: 8
B15: the average hovers around 3. | F15: 9 | G15: H | H15: 9
F16: 10 | G16: H
B17: =1+1/0.5 -> 3 | C17: answer | F17: 11 | G17: H | J17: Notice that we did, at least once, get one outcome
F18: 12 | G18: T | H18: 12 | J18: 17 times in a row before the other occurred
B19: (Of course, the simulation | F19: 13 | G19: T
B20: calculations will be a bit | F20: 14 | G20: T
B21: off if there are 20 consecutive | F21: 15 | G21: T
B22: heads or tails. This should | F22: 16 | G22: H | H22: 16
B23: only happen about one time | F23: 17 | G23: H
B24: in 500,000.) | F24: 18 | G24: T | H24: 18
F25: 19 | G25: H | H25: 19
F26: 20 | G26: T | H26: 20
H27: 21

Sheet Baseball
B1: Baseball
B3: Assume that a baseball pitcher has a 60% chance of throwing a strike when
B4: he pitches his knuckleball, and that the outcomes of separate knuckleball
B5: pitches are independent of one another. Further assume that he’s facing a
B6: batter who can’t hit his knuckleball at all. What is the chance that the pitcher
B7: will strike the batter out (i.e., throw three strikes before he throws four
B8: non-strikes (balls))?
B11: 0.6 | C11: Pr(any particular pitch is a strike)
B13: =strike^3 -> 0.216 | C13: Pr(3 strikes)
B14: =BINOMDIST(2,3,strike,FALSE)*strike -> 0.2592 | C14: Pr(1 ball and 2 strikes, then a strike)
B15: =BINOMDIST(2,4,strike,FALSE)*strike -> 0.20736 | C15: Pr(2 balls and 2 strikes, then a strike)
B16: =BINOMDIST(2,5,strike,FALSE)*strike -> 0.13824 | C16: Pr(3 balls and 2 strikes, then a strike)
B18: =SUM(B13:B16) -> 0.8208 | C18: total
B20: =BINOMDIST(3,6,1-strike,TRUE) -> 0.8208 | C20: quicker
B22: (The "quicker" approach is based on the observation that every sequence of six
B23: pitches includes either at least three strikes or at least four balls (and that only
B24: one of these two cases can occur.)

Sheet Breakdowns
B1: Breakdowns
B3: A new automated production process has had an average of 1.5 breakdowns per
B4: day. Because of the cost associated with a breakdown, management is concerned
B5: about the possibility of having three or more breakdowns per day. Assume that
B6: breakdowns occur randomly, that the probability of a breakdown is the same for
B7: any two time intervals of equal length, and that breakdowns in one period are
B8: independent of breakdowns in other periods. What is the probability of having
B9: three or fewer breakdowns in the course of one day?
B12: This problem can be done directly using the Poisson distribution,
B13: or approximately using the binomial distribution (and breaking the day
B14: into a number of "periods").
B16: 1.5 | C16: mean number of breakdowns per day
B17: 3 | C17: k (number of breakdowns in a day)
B19: =POISSON(breaks,break_rate,TRUE) -> 0.9343575456 | C19: Pr( k or fewer breakdowns in a day )
B20: =POISSON(breaks,break_rate,TRUE)
B22: =24*60 -> 1440 | C22: periods in a day (minutes)
B23: =break_rate/periods -> 0.001041666667 | C23: breakdown rate per minute
B24: =BINOMDIST(breaks,periods,B23,TRUE) -> 0.9344556704 | C24: approximate answer, using binomial distribution
B25: =BINOMDIST(breaks,periods,B23,TRUE)
B27: The reason the binomial-distribution approach is approximate, rather than exact, is that
B28: it doesn't allow for the possibility of two or more breakdowns during the same period. If the
B29: periods are very short, this doesn't differ much from reality, i.e., the breakdown rate per
B30: period is close to the probability of a single breakdown in a period.
B33: Here's another example:
B35: Typographical errors
B37: An experienced typist makes approximately 1 mistake every 3 pages. What is the
B38: probability that he makes at most two mistakes while typing a 10-page paper?
B41: 3 | C41: pages / error
B42: =1/pages_per_error -> 0.3333333333 | C42: errors / page (I.e., error rate )
B43: 10 | C43: pages
B44: 2 | C44: k (errors)
B46: =POISSON(errors,error_rate*pages,TRUE) -> 0.3527761564 | C46: Pr( k or fewer errors in n pages )
B48: Using the binomial distribution as an approximation:
B50: 1500 | C50: characters/page, roughly
B51: =error_rate/B50 -> 0.0002222222222 | C51: Pr(a particular character is in error)
B53: =BINOMDIST(errors,chars_per_page*pages,B51,TRUE) -> 0.3527467918 | C53: Pr( k or fewer errors in n pages )
